Cogmind - Beta 11.1 @@@ ROGUE MODE // 2022.06.15 @ 20:44:56 Player: Savant Result: Core destroyed Performance ------------- Evolutions (6) 3000 Regions Visited (23) 4600 Robots Destroyed (225) 1125 Value Destroyed (6992) 6992 Prototype IDs (61) 1220 Alien Tech Used (2) 400 Bonus (2711) 2711 TOTAL SCORE: 20048 Bonus ------- High Alert Combat Kills 249 Follower Combat Kills 891 Met Data Miner 300 Met Imprinter 300 Met Warlord at Base 500 MAIN.C Attacked Warlord 500 Friendly Fire -29 Cogmind --------- Core Integrity 0/1150 Matter 300/300 Energy 82/100 System Corruption 16% Temperature Cool (0) Movement Hovering (76) Location -4/Factory Parts ------- > --- POWER (2) -------- (None) > --- PROPULSION (5) --- Combat Antigrav System Combat Antigrav System Combat Antigrav System > --- UTILITY (10) ----- Advanced Signal Interpreter Improved Target Analyzer Advanced Hacking Suite Advanced Hacking Suite > --- WEAPON (3) ------- Power Maul > --- INVENTORY (5) ---- Improved Fusion Compressor Combat Linear Gravjet Experimental Phase Shifter System Purifier HERF Cannon Peak State ------------ > --- POWER ------------ Micro Fission Core Micro Fission Core > --- PROPULSION ------- Combat Antigrav System Combat Antigrav System Combat Antigrav System Combat Linear Gravjet Combat Linear Gravjet > --- UTILITY ---------- Large Storage Unit Long-range Sensor Array Advanced Signal Interpreter Long-range Terrain Scanner Improved Target Analyzer Advanced Hacking Suite Advanced Hacking Suite Advanced Hacking Suite Advanced System Shield Advanced Component Analysis Suite > --- WEAPON ----------- Heavy Phase Cannon Matter Neutralizer Power Maul > --- INVENTORY -------- Improved Fusion Compressor Centrium Wheel Combat Antigrav System Combat Linear Gravjet Long-range Sensor Array Experimental Phase Shifter Experimental Cloaking Device System Purifier Dimensional Node Initializer HERF Cannon Vortex Cannon Vortex Cannon Advanced KE Penetrator CR-A16's Pointy Stick [Rating: 139] Favorites ----------- Power Micro Fission Core Engine Heavy Ion Engine Power Core Micro Fission Core Reactor Vortex Chain Reactor Propulsion Aerolev Unit Treads Light Treads Leg Experimental Myomer Leg Wheel Compact Wheel Hover Unit Aerolev Unit Flight Unit Nuclear Pulse Array Utility Hacking Suite Device Advanced Sensor Array Storage Large Storage Unit Processor Advanced Signal Interpreter Hackware Hacking Suite Protection Improved Utility Shielding Weapon Shock Maul Energy Gun Improved EM Shotgun Energy Cannon Cooled Plasma Cannon Ballistic Gun Assault Rifle Launcher Precision Rocket Launcher Special Weapon Mining Laser Impact Weapon Shock Maul Slashing Weapon Ripper Piercing Weapon CR-A16's Pointy Stick Special Melee Weapon Dirty Datajack Build | -11 -10 -10 -9 -9 -8 -7 -7 -7 -7 -6 -6 -6 -6 -6 -5 -5 -5 -5 -5 -4 -4 -4 -4 ------- Run | Scr Mat Min Mat Sto Mat Fac Low Low Dat Pro Fac Low Low Zio Pro Fac Upp Upp War Pro Fac Was Fac Slots Evolved 12 | . . . 2 . 2 2 . . . . 2 . . . . 2 . . . . 2 . . Power 1 | . . . . . . . . . . . . . . . . . . . . . 1 . . Propulsion 3 | . . . . . 1 . . . . . 1 . . . . 1 . . . . . . . Utility 8 | . . . 2 . 1 2 . . . . 1 . . . . 1 . . . . 1 . . Weapon . | . . . . . . . . . . . . . . . . . . . . . . . . Parts Attached 426 | 6 18 9 31 11 41 15 16 5 3 10 55 6 3 3 27 50 10 8 9 9 40 2 39 Power 31 | 1 3 1 2 1 1 1 2 . . 1 5 . . . 1 2 . . . 1 3 . 6 Engine 9 | 1 3 1 2 1 1 . . . . . . . . . . . . . . . . . . Core 19 | . . . . . . 1 2 . . 1 5 . . . 1 2 . . . 1 2 . 4 Reactor 3 | . . . . . . . . . . . . . . . . . . . . . 1 . 2 Propulsion 92 | 2 7 3 10 1 12 7 . 1 . . 9 . . . . 13 1 . 4 . 10 1 11 Treads 17 | 1 3 1 5 1 6 . . . . . . . . . . . . . . . . . . Leg 1 | . . . . . . . . . . . . . . . . . . . 1 . . . . Wheel 17 | 1 4 2 5 . 5 . . . . . . . . . . . . . . . . . . Hover 35 | . . . . . . 4 . 1 . . 7 . . . . 4 . . 2 . 5 1 11 Flight 22 | . . . . . 1 3 . . . . 2 . . . . 9 1 . 1 . 5 . . Utility 175 | 1 2 . 12 4 12 5 8 1 1 5 27 4 2 . 18 28 6 5 4 2 14 1 13 Device 88 | . . . 5 2 1 2 4 1 . 4 13 2 2 . 9 18 3 3 3 2 7 . 7 Storage 9 | 1 1 . 1 . . 1 . . . . 1 . . . 2 2 . . . . . . . Processor 9 | . 1 . 3 . 1 . 1 . . . 2 . . . . . . . . . . . 1 Hackware 25 | . . . . 1 1 1 . . . 1 4 . . . . 5 1 1 . . 4 1 5 Protection 44 | . . . 3 1 9 1 3 . 1 . 7 2 . . 7 3 2 1 1 . 3 . . Artifact . | . . . . . . . . . . . . . . . . . . . . . . . . Weapon 128 | 2 6 5 7 5 16 2 6 3 2 4 14 2 1 3 8 7 3 3 1 6 13 . 9 Energy Gun 4 | 1 . . 1 . 1 . . . . . . . . . . . . . . . . . 1 Energy Cannon 49 | . 1 2 3 2 6 1 2 1 . 1 7 1 1 1 3 2 2 2 . 3 4 . 4 Ballistic Gun 10 | 1 4 3 1 . . . . . . . . . . . . . . . . . . . 1 Ballistic Cannon . | . . . . . . . . . . . . . . . . . . . . . . . . Launcher 13 | . . . . 1 3 . 1 . . 1 1 . . 1 . 1 1 . . . 3 . . Special Weapon 2 | . 1 . . . . . . . . . . . . . . 1 . . . . . . . Impact Weapon 30 | . . . 2 2 5 . 1 2 1 2 6 1 . 1 2 3 . . . . 1 . 1 Slashing Weapon 1 | . . . . . . . 1 . . . . . . . . . . . . . . . . Piercing Weapon 14 | . . . . . . . . . . . . . . . 3 . . . 1 3 5 . 2 Special Melee Weapon 5 | . . . . . 1 1 1 . 1 . . . . . . . . 1 . . . . . Unidentified Prototypes 13 | . . . 1 1 1 . . . . . 1 . . 1 . . 1 . 5 . 1 . 1 Corrupted Parts 2 | . . . . . . . . . . . 2 . . . . . . . . . . . . System Corruption 4 | . . . . . . . . . . . 4 . . . . . . . . . . . . Parts Lost 88 | . 1 4 3 1 14 . 3 1 . 3 10 . . . 6 7 2 . . 1 15 . 17 Power 16 | . . 1 1 1 . . 1 . . 1 2 . . . 1 1 . . . 1 3 . 3 Propulsion 33 | . . 1 1 . 7 . . 1 . 1 4 . . . 3 4 2 . . . 4 . 5 Utility 27 | . . . . . 6 . 2 . . 1 3 . . . 2 2 . . . . 5 . 6 Weapon 12 | . 1 2 1 . 1 . . . . . 1 . . . . . . . . . 3 . 3 Highest Loss Streak 8 | . 1 3 2 1 5 . 1 1 . 3 4 . . . 4 4 1 . . 1 7 . 8 To Critical Strikes 3 | . . 1 1 . . . . . . . . . . . . . . . . . . . 1 Average Slot Usage (%) 92 | . 98 99 99 98 97 98 96 100 100 90 90 100 100 99 90 82 80 73 85 94 85 60 87 Engine 3 | . 13 14 10 9 9 . . . . . . . . . . . . . . . 3 . . Core 3 | . . . . . . 6 6 7 7 7 5 6 6 6 6 4 5 5 5 5 4 . 6 Treads 4 | . 14 14 9 11 20 . . . . . . . . . . . . . . . . . . Wheel 2 | . 12 13 12 11 5 . . . . . . . . . . . . . . . . . . Hover 10 | . . . . . . 1 23 23 23 15 18 26 26 26 17 3 . . 5 11 4 16 22 Flight 3 | . . . . . . 20 . . . . 1 . . . . 13 16 11 11 11 12 . . Device 12 | . . . 15 20 8 11 14 14 15 14 12 12 12 13 11 13 16 15 14 14 10 5 12 Storage 7 | . 14 14 11 11 9 7 7 7 7 7 6 6 6 6 6 5 5 5 5 5 5 5 4 Processor 8 | . 13 14 11 . 1 7 7 7 7 7 6 13 13 13 13 11 11 11 11 11 10 10 10 Hackware 15 | . . . . 10 16 21 11 7 7 12 23 20 20 20 20 19 15 16 16 16 21 18 18 Protection 3 | . . . 6 1 9 2 10 15 15 7 1 . . . . . . . 1 1 . . . Energy Cannon 2 | . . 16 8 . 1 . . . . . 2 . 1 5 2 . . . . . 1 . 4 Ballistic Gun 1 | . 17 11 7 . . . . . . . . . . . . . . . . . . . . Impact Weapon 7 | . . . 4 15 14 7 6 9 9 14 8 12 10 6 5 4 5 5 5 5 4 . 2 Naked Turns . | . . . . . . . . . . . . . . . . . . . . . . . . Heaviest Build 68 | 14 30 31 43 43 47 44 34 32 32 32 36 36 36 28 41 34 33 32 37 39 62 24 68 Greatest Support 82 | 16 16 10 40 16 60 33 33 33 33 33 41 41 41 41 41 44 33 32 39 38 48 36 82 Greatest Overweight (x) 10 | . 2 3 3 2 7 1 4 . . . 2 . . . 1 1 1 10 1 1 2 . 2 Average Overweight (x) . | . 1 2 1 1 . . . . . . . . . . . . . . . . . . . Largest Inventory Capacity 15 | 8 15 15 15 15 15 15 10 10 10 10 10 10 10 10 15 15 15 15 15 15 15 15 15 Average Capacity 13 | 7 14 15 15 15 15 10 10 10 10 10 10 10 10 10 10 13 15 15 15 15 15 15 14 Most Carried 15 | 4 11 12 15 15 15 14 10 10 10 10 10 10 10 10 11 15 15 15 15 15 15 15 15 Average Carried 12 | 2 7 10 13 14 14 8 9 9 10 9 9 10 9 9 9 11 14 14 14 14 14 14 14 Final Capacity 15 | 8 15 15 15 15 15 10 10 10 10 10 10 10 10 10 15 15 15 15 15 15 15 15 5 Final Carried 15 | 4 11 11 15 15 15 10 10 10 10 10 10 10 10 10 11 14 15 14 15 15 15 15 5 Class Distribution -------------------- 33% | Hacker-Scout 28% | Hacker-Mutant 23% | Mutant 7% | Hacker-Assassin Dominant Class ---------------- Mutant | -10/Materials Mutant | -10/Mines Mutant | -9/Materials Mutant | -9/Storage Hacker-Mutant | -8/Materials Hacker-Sprinter | -7/Factory Mutant | -7/Lower Caves Mutant | -7/Lower Caves Mutant | -7/Data Miner Hacker-Mutant | -6/Proximity Caves Hacker-Mutant | -6/Factory Hacker-Scout | -6/Lower Caves Hacker-Scout | -6/Lower Caves Hacker-Scout | -6/Zion Hacker-Scout | -5/Proximity Caves Hacker-Scout | -5/Factory Hacker-Scout | -5/Upper Caves Hacker-Scout | -5/Upper Caves Hacker-Scout | -5/Warlord Hacker-Assassin | -4/Proximity Caves Hacker-Mutant | -4/Factory Hacker-Mutant | -4/Waste Hacker-Scout | -4/Factory Resources | -11 -10 -10 -9 -9 -8 -7 -7 -7 -7 -6 -6 -6 -6 -6 -5 -5 -5 -5 -5 -4 -4 -4 -4 ----------- Run | Scr Mat Min Mat Sto Mat Fac Low Low Dat Pro Fac Low Low Zio Pro Fac Upp Upp War Pro Fac Was Fac Matter Collected 5243 | 238 196 292 474 98 431 . 379 47 . 141 533 110 50 30 230 523 65 174 10 159 380 . 683 Remotely . | . . . . . . . . . . . . . . . . . . . . . . . . Salvage Created 9196 | . 285 214 947 902 1771 . 196 143 . 275 668 . 54 . 935 848 39 43 . 148 474 . 1254 Parts 359 | . 29 16 53 38 84 . 7 . . 8 18 . . . 24 22 2 . . 5 19 . 34 Haulers Intercepted 9 | . . . 4 3 1 . . . . 1 . . . . . . . . . . . . . Recyclers Shooed 3 | . 1 . 1 . . . . . . . . . . . . 1 . . . . . . . Parts Field Recycled . | . . . . . . . . . . . . . . . . . . . . . . . . Retrieved Matter . | . . . . . . . . . . . . . . . . . . . . . . . . Parts Self-Destructed 59 | . . . . . . . 5 . . 9 . 1 3 . 36 . 1 . . 4 . . . Prevented 7 | . . . . . . . 2 . . 3 . . . . 2 . . . . . . . . Kills | -11 -10 -10 -9 -9 -8 -7 -7 -7 -7 -6 -6 -6 -6 -6 -5 -5 -5 -5 -5 -4 -4 -4 -4 ------- Run | Scr Mat Min Mat Sto Mat Fac Low Low Dat Pro Fac Low Low Zio Pro Fac Upp Upp War Pro Fac Was Fac Combat Hostiles Destroyed 165 | . 10 10 17 15 39 . 6 3 . 8 12 . 1 . 5 7 4 1 . 2 14 . 11 Melee 41 | . . . 2 7 12 . . . . 3 4 . . . 1 3 . . . . 3 . 6 Guns 25 | . 9 6 7 . 3 . . . . . . . . . . . . . . . . . . Cannons 24 | . . 3 6 . 7 . 3 . . . 1 . . . 2 . . . . . . . 2 AOE 37 | . 1 . . . 8 . 3 . . 3 1 . . . . 4 4 . . 2 10 . 1 Classes Destroyed 17 | . 5 1 5 . 3 . 1 . . . . . . . 1 . . . . . 1 . . Worker 7 | . . . 1 2 3 . . . . . . . . . . . . . . . . . 1 Builder 11 | . 1 . . . 2 . . . . . 2 . . . . 1 . . . . 1 . 4 Tunneler 1 | . 1 . . . . . . . . . . . . . . . . . . . . . . Hauler 9 | . . . 4 3 1 . . . . 1 . . . . . . . . . . . . . Recycler 17 | . . . 2 2 . . . . . . 1 . . . . 4 . . . . 2 . 6 Operator 4 | . . . 2 . . . . . . . 1 . . . . 1 . . . . . . . Watcher 13 | . 1 . 1 . 4 . . . . . 1 . . . . 4 . . . . . . 2 Swarmer 63 | . 8 6 8 1 8 . . . . 6 2 . . . . 4 4 . . . 10 . 6 Cutter 1 | . . . . . . . . . . . . . . . . . . . . . 1 . . Grunt 46 | . 2 2 4 7 17 . 3 2 . 1 3 . 1 . 1 . . 1 . . 1 . 1 Brawler 2 | . . . . . 1 . 1 . . . . . . . . . . . . . . . . Sentry 25 | . . . 5 7 8 . 1 1 . . 2 . . . 1 . . . . . . . . Demolisher 3 | . . . . . . . . . . . . . . . 3 . . . . . . . . Specialist 4 | . . . . . 4 . . . . . . . . . . . . . . . . . . Hunter 8 | . . . . . 1 . . . . 1 4 . . . . . . . . 2 . . . Programmer 11 | . . . . . . . 1 . . . 1 . . . . 3 . . . . 2 . 4 Assembled 2 | . . 2 . . . . . . . . . . . . . . . . . . . . . Best Kill Streak 13 | . 4 5 3 6 13 . 3 3 . 3 6 . 1 . 2 4 4 1 . 2 5 . 7 Combat Bots Only 10 | . 3 5 3 4 10 . 3 3 . 3 6 . 1 . 2 4 4 1 . 2 5 . 3 Max Kills in Single Turn 4 | . 2 1 1 1 3 . 2 1 . 3 1 . 1 . 1 2 2 1 . 2 4 . 1 Gunslinging 1 | . 1 . . . . . . . . . . . . . . . . . . . . . . Exploded 4 | . 1 . . . 2 . 2 . . 3 1 . . . . 2 2 . . 2 4 . 1 Melee 1 | . . . 1 1 1 . . . . 1 1 . . . 1 1 . . . . 1 . 1 Uniques/NPCs Destroyed . | . . . . . . . . . . . . . . . . . . . . . . . . Combat | -11 -10 -10 -9 -9 -8 -7 -7 -7 -7 -6 -6 -6 -6 -6 -5 -5 -5 -5 -5 -4 -4 -4 -4 -------- Run | Scr Mat Min Mat Sto Mat Fac Low Low Dat Pro Fac Low Low Zio Pro Fac Upp Upp War Pro Fac Was Fac Damage Taken 15357 | . 264 580 645 435 2158 307 401 238 . 325 1744 . 58 . 1433 705 195 19 . 207 2531 . 3112 Core 3235 | . 31 92 84 66 349 70 128 66 . 73 481 . 20 . 158 194 17 19 . 53 642 . 692 Absorbed by Shields . | . . . . . . . . . . . . . . . . . . . . . . . . Redirected to Shielding 280 | . . . 68 . 106 . . 3 . 16 87 . . . . . . . . . . . . Regen/Repaired (Parts) 1022 | . . . . . . . . . . . 426 . . . 20 248 17 11 30 64 206 . . Core Remaining (%) 56 | 100 . 50 . 62 36 . . . . 51 . . . . 22 . . . . 71 . . . Volleys Fired 289 | . 23 27 52 5 46 1 19 1 . 3 26 5 15 . 11 7 5 3 . 6 21 . 13 Largest 2 | . 2 2 2 1 2 1 1 1 . 1 2 1 1 . 1 1 1 1 . 1 1 . 2 Hottest 195 | . 100 120 113 45 136 35 36 35 . 36 120 35 35 . 105 43 43 35 . 35 43 . 195 Shots Fired 422 | . 45 54 97 5 83 1 19 1 . 3 28 5 15 . 11 7 5 3 . 6 21 . 13 Gun 143 | . 44 29 46 5 19 . . . . . . . . . . . . . . . . . . Cannon 237 | . . 25 51 . 60 1 12 1 . 1 23 5 15 . 11 2 2 3 . 6 6 . 13 Launcher 40 | . . . . . 4 . 7 . . 2 5 . . . . 4 3 . . . 15 . . Special 2 | . 1 . . . . . . . . . . . . . . 1 . . . . . . . Kinetic 100 | . 26 29 45 . . . . . . . . . . . . . . . . . . . . Thermal 237 | . 1 25 51 . 60 1 12 1 . 1 23 5 15 . 11 2 2 3 . 6 6 . 12 Explosive 40 | . . . . . 4 . 7 . . 2 5 . . . . 4 3 . . . 15 . . Electromagnetic 43 | . 18 . 1 5 19 . . . . . . . . . . . . . . . . . . Entropic 1 | . . . . . . . . . . . . . . . . . . . . . . . 1 Robot Hit Streak 19 | . 12 9 19 2 16 . 5 . . . 5 . . . 7 7 . . . . 9 . 8 Robot Miss Streak 5 | . 5 3 1 1 3 . 2 . . 1 2 . . . 1 . . . . . 1 . . Penetration Max . | . . . . . . . . . . . . . . . . . . . . . . . . Secondary Targets 4 | . 3 1 . . . . . . . . . . . . . . . . . . . . . Max Gunslinging Chain 1 | . 1 1 . . . . . . . . . . . . . . . . . . . . . Shots Hit Robots 524 | . 26 33 77 52 105 . 17 6 1 14 38 . 3 . 47 26 . 3 . 2 29 . 45 Core Hits 218 | . 16 13 28 13 52 . 11 1 . 6 14 . . . 15 8 4 . . 1 22 . 14 Critical Kills 12 | . . . 2 5 2 . . . . . 1 . . . 1 . . . . . . . 1 Critical Parts Destroyed 58 | . . . 3 5 10 . 1 2 . 1 6 . 1 . 4 7 . 1 . . 5 . 12 Critical Strikes 82 | . . . 5 11 12 . 1 2 . 1 7 . 1 . 11 7 . 1 . . 5 . 18 Meltdown 2 | . . . 1 . 1 . . . . . . . . . . . . . . . . . . Destroy 1 | . . . 1 . . . . . . . . . . . . . . . . . . . . Smash 71 | . . . 3 11 11 . 1 2 . 1 7 . 1 . 8 7 . 1 . . 5 . 13 Impale 7 | . . . . . . . . . . . . . . . 3 . . . . . . . 4 Sunder 1 | . . . . . . . . . . . . . . . . . . . . . . . 1 Melee Attacks 701 | . . . 25 74 96 12 10 15 1 41 70 15 23 1 67 69 8 9 . 13 57 . 95 Impact 606 | . . . 25 74 95 12 4 13 . 41 70 15 23 1 39 65 8 9 . 4 42 . 66 Slashing 2 | . . . . . . . . 2 . . . . . . . . . . . . . . . Piercing 85 | . . . . . . . . . . . . . . . 28 4 . . . 9 15 . 29 Sneak Attacks 39 | . . . 1 7 2 . 6 . 1 2 3 . . . . 6 . . . . 3 . 8 Combat Hostiles 1 | . . . . . . . . . . 1 . . . . . . . . . . . . . Follow-up Attacks 35 | . . . . 5 10 . . 1 . 3 5 . 1 . 1 4 . . . . 3 . 2 Damage Inflicted 22732 | . 519 457 1526 1966 3869 . 737 271 . 1008 2053 . 162 . 2363 1994 394 185 . 4 2883 . 2341 Guns 1388 | . 343 184 460 70 331 . . . . . . . . . . . . . . . . . . Cannons 3089 | . . 273 822 . 825 . 289 . . . 225 . . . 416 . . . . . . . 239 Explosions 4301 | . 176 . . 32 653 . 414 . . 166 349 . . . . 409 394 . . . 1708 . . Melee 13954 | . . . 244 1864 2060 . 34 271 . 842 1479 . 162 . 1947 1585 . 185 . 4 1175 . 2102 Ramming . | . . . . . . . . . . . . . . . . . . . . . . . . Kinetic 798 | . 163 184 451 . . . . . . . . . . . . . . . . . . . . Thermal 3362 | . 176 273 822 32 958 . 289 . . . 225 . . . 416 . . . . . . . 171 Explosive 3960 | . . . . . 520 . 414 . . 166 349 . . . . 409 394 . . . 1708 . . Electromagnetic 590 | . 180 . 9 70 331 . . . . . . . . . . . . . . . . . . Impact 11969 | . . . 244 1864 2060 . 34 233 . 842 1479 . 162 . 576 1519 . 185 . . 1079 . 1692 Slashing 38 | . . . . . . . . 38 . . . . . . . . . . . . . . . Piercing 1947 | . . . . . . . . . . . . . . . 1371 66 . . . 4 96 . 410 Entropic 68 | . . . . . . . . . . . . . . . . . . . . . . . 68 Highest Corruption 16 | . . . . . . . . . . . 4 . . . . 2 . . . . 9 16 16 Average Corruption 6 | . . . . . . . . . . . 3 . . . . 1 . . . . 4 12 9 Corruption Purged 29 | . . . . . . . . . . . 8 . . . . 3 . . . . . . 18 Corruption Blocked . | . . . . . . . . . . . . . . . . . . . . . . . . Effects 69 | . . . . . . . . . . . 11 . . . . 4 . . . . 7 . 47 Message Errors 15 | . . . . . . . . . . . 4 . . . . 1 . . . . 1 . 9 Matter Fused 21 | . . . . . . . . . . . 4 . . . . 1 . . . . 3 . 13 Heat Flow Errors 11 | . . . . . . . . . . . 1 . . . . . . . . . 1 . 9 Energy Discharges 5 | . . . . . . . . . . . . . . . . 1 . . . . 1 . 3 Parts Rejected 1 | . . . . . . . . . . . . . . . . . . . . . 1 . . Data Loss (minor) 9 | . . . . . . . . . . . 1 . . . . 1 . . . . . . 7 Data Loss (major) 2 | . . . . . . . . . . . 1 . . . . . . . . . . . 1 Misdirections 3 | . . . . . . . . . . . . . . . . . . . . . . . 3 Weapon Failures 2 | . . . . . . . . . . . . . . . . . . . . . . . 2 Overload Shots 7 | . . . . . . . . . . . . . . . 7 . . . . . . . . Overflow Damage 5363 | . 24 . 120 324 670 . 65 151 . 290 566 . 70 . 390 1019 17 100 . . 516 . 1041 Projectiles 104 | . . . 27 3 . . . . . . 6 . . . . . . . . . . . 68 Explosions 253 | . 24 . . . 9 . 31 . . . 6 . . . . 63 17 . . . 103 . . Melee 5006 | . . . 93 321 661 . 34 151 . 290 554 . 70 . 390 956 . 100 . . 413 . 973 Knockbacks 41 | . . . 1 2 4 . . . . 1 3 . . . 4 8 . 1 . . 6 . 11 Impact 36 | . . . 1 2 4 . . . . 1 3 . . . 3 7 . 1 . . 6 . 8 Kinetic . | . . . . . . . . . . . . . . . . . . . . . . . . Secondary 5 | . . . . . . . . . . . . . . . 1 1 . . . . . . 3 Self-Inflicted Damage 228 | . . . . . 79 . . . . 11 . . . . . 33 29 . . . 76 . . Shots 8 | . . . . . 3 . . . . 1 . . . . . 1 1 . . . 2 . . Rammed . | . . . . . . . . . . . . . . . . . . . . . . . . Targets Rammed . | . . . . . . . . . . . . . . . . . . . . . . . . Kicked . | . . . . . . . . . . . . . . . . . . . . . . . . Crushed . | . . . . . . . . . . . . . . . . . . . . . . . . Highest Temperature 464 | . 42 435 58 . 102 12 9 13 . . 106 . . . 264 . 6 . . . 290 . 464 Average Temperature 74 | . 26 155 19 . 20 12 4 9 . . 31 . . . 120 . 6 . . . 120 . 83 Received Heat Transfer 2501 | . 48 87 162 144 864 84 81 135 . . 423 . 27 . 63 18 27 9 . . 281 . 48 Effects 8 | . . 3 . . . . . . . . . . . . . . . . . . . . 5 Shutdowns 3 | . . 1 . . . . . . . . . . . . . . . . . . . . 2 Energy Bleed 2 | . . 2 . . . . . . . . . . . . . . . . . . . . . Damage (major) 3 | . . . . . . . . . . . . . . . . . . . . . . . 3 Siege Activations . | . . . . . . . . . . . . . . . . . . . . . . . . Robots Corrupted . | . . . . . . . . . . . . . . . . . . . . . . . . Combat Hostiles . | . . . . . . . . . . . . . . . . . . . . . . . . Parts Fried 94 | . . . 2 15 19 . . 4 . 6 8 . 1 . . 18 . 1 . . 4 . 16 Impact Corruptions 162 | . . . 3 18 23 . 1 5 . 8 21 . 2 . 6 28 . 3 . . 14 . 30 Robots Melted 4 | . . 1 1 . 2 . . . . . . . . . . . . . . . . . . Combat Hostiles 4 | . . 1 1 . 2 . . . . . . . . . . . . . . . . . . Parts Melted 17 | . . 2 5 . 7 . 2 . . . . . . . . . . . . . . . 1 Heat Transferred 5404 | . 250 555 1517 . 1630 . 450 . . . 324 . . . 530 . . . . . . . 148 Parts Sabotaged . | . . . . . . . . . . . . . . . . . . . . . . . . Parts Stolen . | . . . . . . . . . . . . . . . . . . . . . . . . Parts Stripped . | . . . . . . . . . . . . . . . . . . . . . . . . Power Chain Reactions 5 | . 2 . . 1 2 . . . . . . . . . . . . . . . . . . Missiles Intercepted . | . . . . . . . . . . . . . . . . . . . . . . . . Alert | -11 -10 -10 -9 -9 -8 -7 -7 -7 -7 -6 -6 -6 -6 -6 -5 -5 -5 -5 -5 -4 -4 -4 -4 ------- Run | Scr Mat Min Mat Sto Mat Fac Low Low Dat Pro Fac Low Low Zio Pro Fac Upp Upp War Pro Fac Was Fac Peak Influence 682 | . 279 273 478 599 682 128 . . . . 455 . . . . 672 . . . . 569 193 203 Initial 193 | . . 108 27 113 128 74 . . . . . . . . . 11 . . . . . 193 121 Average 210 | . 170 161 283 353 145 91 . . . . 139 . . . . 369 . . . . 192 193 126 Maximum Alert Level 2 | . 1 1 2 2 2 . . . . . 2 . . . . 2 . . . . 2 . 1 Low Security (%) 56 | 100 71 40 21 12 82 100 . . . . 74 . . . . 15 . . . . 51 100 96 Level 1 28 | . 28 59 69 47 5 . . . . . 17 . . . . 42 . . . . 32 . 3 Level 2 14 | . . . 8 39 12 . . . . . 7 . . . . 42 . . . . 15 . . Level 3 . | . . . . . . . . . . . . . . . . . . . . . . . . Level 4 . | . . . . . . . . . . . . . . . . . . . . . . . . Level 5 . | . . . . . . . . . . . . . . . . . . . . . . . . High Security . | . . . . . . . . . . . . . . . . . . . . . . . . Max Security . | . . . . . . . . . . . . . . . . . . . . . . . . Squads Dispatched 51 | . 2 . 3 2 8 . . . . . 9 . . . . 10 . . . . 9 . 8 Investigation 26 | . 2 . 2 1 2 . . . . . 5 . . . . 6 . . . . 4 . 4 Extermination 9 | . . . . . . . . . . . 2 . . . . 2 . . . . 2 . 3 Reinforcement 11 | . . . 1 1 4 . . . . . 1 . . . . 1 . . . . 2 . 1 Assault 1 | . . . . . . . . . . . . . . . . . . . . . 1 . . Garrison 4 | . . . . . 2 . . . . . 1 . . . . 1 . . . . . . . Intercept . | . . . . . . . . . . . . . . . . . . . . . . . . Searches Triggered . | . . . . . . . . . . . . . . . . . . . . . . . . Data Miner Redirects 9 | . . . . . . . . . . . 2 . . . . 2 . . . . 3 . 2 Construction Impeded 2 | . . . . . . . . . . . . . . . . 1 . . . . 1 . . Haulers Reinforced . | . . . . . . . . . . . . . . . . . . . . . . . . Active Scanning Responses . | . . . . . . . . . . . . . . . . . . . . . . . . Cargo Convoy Interrupts . | . . . . . . . . . . . . . . . . . . . . . . . . Stealth | -11 -10 -10 -9 -9 -8 -7 -7 -7 -7 -6 -6 -6 -6 -6 -5 -5 -5 -5 -5 -4 -4 -4 -4 --------- Run | Scr Mat Min Mat Sto Mat Fac Low Low Dat Pro Fac Low Low Zio Pro Fac Upp Upp War Pro Fac Was Fac Distress Signals 48 | . . 1 3 3 5 . . . . . 1 . . . 21 7 . . 1 . 3 . 3 Communications Jammed 5 | . . . . . . . . . . . . . . . . 5 . . . . . . . Distress Signals . | . . . . . . . . . . . . . . . . . . . . . . . . Times Spotted 363 | . 19 14 35 30 63 3 12 4 . 5 32 1 5 . 11 48 2 1 . 3 39 . 36 Peak Tracking Total 17 | . 4 6 5 5 5 2 7 3 . 2 7 1 3 . 3 7 4 1 . 2 8 . 17 Tactical Retreats 49 | . 2 1 4 1 4 . 2 1 . . 2 1 . . . 15 . 1 . 1 10 . 4 Traps | -11 -10 -10 -9 -9 -8 -7 -7 -7 -7 -6 -6 -6 -6 -6 -5 -5 -5 -5 -5 -4 -4 -4 -4 ------- Run | Scr Mat Min Mat Sto Mat Fac Low Low Dat Pro Fac Low Low Zio Pro Fac Upp Upp War Pro Fac Was Fac Traps Triggered 8 | . 3 . . . . . . . . . 1 . . . . . . . . . 3 . 1 Indirectly . | . . . . . . . . . . . . . . . . . . . . . . . . Trap Hack Attempts . | . . . . . . . . . . . . . . . . . . . . . . . . Triggered . | . . . . . . . . . . . . . . . . . . . . . . . . Disarmed . | . . . . . . . . . . . . . . . . . . . . . . . . Reprogrammed 20 | . . . . 5 1 . . . . . . . . . . 10 . . . . 4 . . Reused 5 | . . . . 1 . . . . . 1 . . . . . 1 . . . . 2 . . Traps Extracted . | . . . . . . . . . . . . . . . . . . . . . . . . Installed 1 | . . . . . . . . . . 1 . . . . . . . . . . . . . Triggered 15 | . . . . 2 . . . . . 1 . . 1 . . 2 . . 7 . 2 . . Most Traps Carried 1 | . . . . . . . . 1 1 1 . . . . . . . . . . . . . Machines | -11 -10 -10 -9 -9 -8 -7 -7 -7 -7 -6 -6 -6 -6 -6 -5 -5 -5 -5 -5 -4 -4 -4 -4 ---------- Run | Scr Mat Min Mat Sto Mat Fac Low Low Dat Pro Fac Low Low Zio Pro Fac Upp Upp War Pro Fac Was Fac Machines Disabled 11 | . . . 1 1 . . . . . . . . . . 3 3 1 . . . 2 . . Max in Single Turn 2 | . . . 1 1 . . . . . . . . . . 1 . 1 . . . 2 . . Garrison Access 10 | . . . . . 1 . . . . . 3 . . . . 4 . . . . 2 . . Machines Sabotaged . | . . . . . . . . . . . . . . . . . . . . . . . . Garrisons Compromised . | . . . . . . . . . . . . . . . . . . . . . . . . Overloaded Fab Kills . | . . . . . . . . . . . . . . . . . . . . . . . . Hacking | -11 -10 -10 -9 -9 -8 -7 -7 -7 -7 -6 -6 -6 -6 -6 -5 -5 -5 -5 -5 -4 -4 -4 -4 --------- Run | Scr Mat Min Mat Sto Mat Fac Low Low Dat Pro Fac Low Low Zio Pro Fac Upp Upp War Pro Fac Was Fac Machines Accessed 163 | . 9 . 12 14 16 4 2 2 4 . 22 . . . . 38 2 1 5 . 19 . 13 Terminals 79 | . 7 . 10 13 9 3 . . . . 9 . . . . 17 . . . . 8 . 3 Fabricators 15 | . . . . . . . . . . . 3 . . . . 5 . . . . 2 . 5 Repair Stations 16 | . . . . . 2 . . . . . 5 . . . . 5 . . . . 4 . . Recycling Units 18 | . 2 . 1 1 2 1 . . . . 1 . . . . 4 . . . . 3 . 3 Scanalyzers 10 | . . . 1 . 2 . . . . . 1 . . . . 3 . . . . 1 . 2 Garrison Access 9 | . . . . . 1 . . . . . 3 . . . . 4 . . . . 1 . . Total Hacks 616 | . 29 . 36 34 60 19 2 8 33 . 93 . . . . 145 2 1 10 . 83 . 61 Successful 461 | . 16 . 22 26 45 14 2 8 33 . 69 . . . . 103 2 1 10 . 63 . 47 Failed 154 | . 13 . 14 8 15 5 . . . . 23 . . . . 42 . . . . 20 . 14 Catastrophic 11 | . 1 . . . . . . . . . . . . . . 6 . . . . 3 . 1 Database Lockouts 1 | . . . . . . . . . . . 1 . . . . . . . . . . . . Manual 225 | . 19 . 10 15 16 13 . . . . 29 . . . . 58 . . 1 . 36 . 28 Terminals 298 | . 27 . 27 31 41 13 . . . . 40 . . . . 67 . . . . 39 . 13 Fabricators 66 | . . . . . . . . . . . 12 . . . . 20 . . . . 11 . 23 Repair Stations 60 | . . . . . 4 . . . . . 28 . . . . 18 . . . . 10 . . Recycling Units 56 | . 2 . 1 3 4 6 . . . . 4 . . . . 13 . . . . 12 . 11 Scanalyzers 66 | . . . 8 . 9 . . . . . 3 . . . . 22 . . . . 10 . 14 Garrison Access 14 | . . . . . 2 . . . . . 6 . . . . 5 . . . . 1 . . Terminal Hacks 192 | . 12 . 8 18 26 5 2 8 33 . 21 . . . . 27 2 1 10 . 15 . 4 Record 27 | . . . . . . . . 7 11 . . . . . . . 1 . 8 . . . . Part Schematic 26 | . 2 . . 1 1 . . . 12 . 2 . . . . 5 . . . . 3 . . Robot Schematic 7 | . . . . . . . . . 7 . . . . . . . . . . . . . . Robot Analysis 7 | . 3 . . 1 1 . . . . . . . . . . 2 . . . . . . . Prototype ID Bank 20 | . 2 . 2 2 3 . . . 3 . 3 . . . . 5 . . . . . . . Open Door 13 | . . . . 6 . . 2 1 . . . . . . . . 1 1 2 . . . . Level Access Points 1 | . . . . . 1 . . . . . . . . . . . . . . . . . . Branch Access Points 3 | . . . . . . 1 . . . . 1 . . . . 1 . . . . . . . Machine Index 3 | . . . . 1 . . . . . . . . . . . 1 . . . . 1 . . Terminal Index 7 | . . . 1 1 . 1 . . . . 1 . . . . 1 . . . . 1 . 1 Fabricator Index 1 | . . . . . . . . . . . 1 . . . . . . . . . . . . Repair Station Index 1 | . . . . . . . . . . . . . . . . . . . . . . . 1 Scanalyzer Index 3 | . . . . . 1 . . . . . 1 . . . . 1 . . . . . . . Alert Level 4 | . . . . . 3 . . . . . 1 . . . . . . . . . . . . Unreport Threat 13 | . . . 1 2 5 . . . . . 2 . . . . 3 . . . . . . . Locate Traps 18 | . 2 . . 3 2 . . . . . 2 . . . . 3 . . . . 5 . 1 Reprogram Traps 5 | . . . . 1 1 . . . . . . . . . . 2 . . . . 1 . . Recall Investigation 2 | . . . . . . . . . . . . . . . . 2 . . . . . . . Recall Extermination 3 | . . . . . . . . . . . 1 . . . . 1 . . . . 1 . . Hauler Manifests 6 | . 1 . . . 2 1 . . . . 1 . . . . . . . . . 1 . . Registered Components 2 | . . . . . 1 1 . . . . . . . . . . . . . . . . . Registered Prototypes 1 | . . . . . 1 . . . . . . . . . . . . . . . . . . Zone Layout 19 | . 2 . 4 . 4 1 . . . . 5 . . . . . . . . . 2 . 1 Fabricator Hacks 33 | . . . . . . . . . . . 8 . . . . 8 . . . . 6 . 11 Network Status 4 | . . . . . . . . . . . 1 . . . . 1 . . . . 1 . 1 Load Schematic 18 | . . . . . . . . . . . 4 . . . . 5 . . . . 3 . 6 Build 11 | . . . . . . . . . . . 3 . . . . 2 . . . . 2 . 4 Repair Station Hacks 47 | . . . . . 3 . . . . . 23 . . . . 13 . . . . 8 . . Scan Component 24 | . . . . . 2 . . . . . 11 . . . . 7 . . . . 4 . . Repair 19 | . . . . . 1 . . . . . 10 . . . . 5 . . . . 3 . . Refit 4 | . . . . . . . . . . . 2 . . . . 1 . . . . 1 . . Recycling Unit Hacks 19 | . . . . 1 2 2 . . . . 1 . . . . 4 . . . . 5 . 4 Report Inventory 13 | . . . . 1 . . . . . . 1 . . . . 4 . . . . 4 . 3 Retrieve Components 6 | . . . . . 2 2 . . . . . . . . . . . . . . 1 . 1 Scanalyzer 59 | . . . 8 . 8 . . . . . 2 . . . . 20 . . . . 10 . 11 Insert Component 24 | . . . 4 . 4 . . . . . 1 . . . . 8 . . . . 5 . 2 Analyze 35 | . . . 4 . 4 . . . . . 1 . . . . 12 . . . . 5 . 9 Garrison Access Hacks 7 | . . . . . . . . . . . 2 . . . . 4 . . . . 1 . . Seal Access 7 | . . . . . . . . . . . 2 . . . . 4 . . . . 1 . . Unauthorized Hacks 104 | . 4 . 6 7 6 7 . . . . 12 . . . . 27 . . . . 18 . 17 Terminals 45 | . 2 . 5 5 4 4 . . . . 5 . . . . 9 . . . . 8 . 3 Track 5 | . . . . . . . . . . . 1 . . . . 1 . . . . 3 . . Assimilate 9 | . . . 1 2 . . . . . . 2 . . . . 3 . . . . . . 1 Botnet 23 | . 2 . 3 2 3 3 . . . . 2 . . . . 3 . . . . 4 . 1 Disrupt 1 | . . . . . . . . . . . . . . . . 1 . . . . . . . Operators 7 | . . . 1 1 1 1 . . . . . . . . . 1 . . . . 1 . 1 Fabricators 22 | . . . . . . . . . . . 3 . . . . 9 . . . . 3 . 7 Report 1 | . . . . . . . . . . . . . . . . . . . . . . . 1 Prioritize 6 | . . . . . . . . . . . 1 . . . . 2 . . . . 2 . 1 Liberate 5 | . . . . . . . . . . . 1 . . . . 3 . . . . . . 1 Haulers 2 | . . . . . . . . . . . . . . . . 1 . . . . . . 1 Recompile 8 | . . . . . . . . . . . 1 . . . . 3 . . . . 1 . 3 Repair Stations . | . . . . . . . . . . . . . . . . . . . . . . . . Recycling Units 35 | . 2 . 1 2 1 3 . . . . 3 . . . . 9 . . . . 7 . 7 Monitor 1 | . . . . . . . . . . . . . . . . 1 . . . . . . . Reject 13 | . . . . 1 1 1 . . . . 1 . . . . 3 . . . . 3 . 3 Recyclers 6 | . . . . . . 1 . . . . 1 . . . . 2 . . . . 1 . 1 Mask 11 | . . . . . . 1 . . . . 1 . . . . 3 . . . . 3 . 3 Tunnel 4 | . 2 . 1 1 . . . . . . . . . . . . . . . . . . . Scanalyzers . | . . . . . . . . . . . . . . . . . . . . . . . . Garrison Access 2 | . . . . . 1 . . . . . 1 . . . . . . . . . . . . Jam 2 | . . . . . 1 . . . . . 1 . . . . . . . . . . . . Data Cores Recovered 3 | . . . 1 . . . . . . . . . . . . 2 . . . . . . . Used 2 | . . . 1 . . . . . . . . . . . . 1 . . . . . . . Hacking Detections 110 | . 7 . 11 9 14 3 . . . . 16 . . . . 31 . . . . 11 . 8 Full Trace Events 11 | . 1 . 1 . . . . . . . 3 . . . . 2 . . . . 3 . 1 Feedback Events . | . . . . . . . . . . . . . . . . . . . . . . . . Feedback Blocked . | . . . . . . . . . . . . . . . . . . . . . . . . Robot Schematics Acquired 10 | . . . . . . . . . 7 . . . . 3 . . . . . . . . . Robots Built . | . . . . . . . . . . . . . . . . . . . . . . . . Authchips . | . . . . . . . . . . . . . . . . . . . . . . . . Time . | . . . . . . . . . . . . . . . . . . . . . . . . Total Robot Build Rating . | . . . . . . . . . . . . . . . . . . . . . . . . Part Schematics Acquired 62 | . 2 . 3 1 5 . . . 12 . 3 . . 15 . 13 . . . . 7 . 1 Parts Built 12 | . . . . . . . . . . . 3 . . . . 2 . . . . 2 . 5 Authchips 8 | . . . . . . . . . . . 1 . . . . 2 . . . . 1 . 4 Time 531 | . . . . . . . . . . . 111 . . . . 102 . . . . 85 . 233 Total Part Build Rating 77 | . . . . . . . . . . . 15 . . . . 11 . . . . 14 . 37 Parts Repaired 19 | . . . . . 1 . . . . . 10 . . . . 5 . . . . 3 . . Time 1059 | . . . . . 100 . . . . . 415 . . . . 324 . . . . 220 . . Parts Recycled . | . . . . . . . . . . . . . . . . . . . . . . . . Recycled Matter . | . . . . . . . . . . . . . . . . . . . . . . . . Retrieved Matter . | . . . . . . . . . . . . . . . . . . . . . . . . Retrieved Components 20 | . . . . . 17 . . . . . . . . . . . . . . . 1 . 2 Parts Scanalyzed 23 | . . . 4 . 4 . . . . . 1 . . . . 8 . . . . 4 . 2 Part Schematics Acquired 21 | . . . 3 . 4 . . . . . 1 . . . . 8 . . . . 4 . 1 Parts Damaged 5 | . . . . . 1 . . . . . 1 . . . . 2 . . . . . . 1 Bothacking | -11 -10 -10 -9 -9 -8 -7 -7 -7 -7 -6 -6 -6 -6 -6 -5 -5 -5 -5 -5 -4 -4 -4 -4 ------------ Run | Scr Mat Min Mat Sto Mat Fac Low Low Dat Pro Fac Low Low Zio Pro Fac Upp Upp War Pro Fac Was Fac Used RIF Installer . | . . . . . . . . . . . . . . . . . . . . . . . . Robots Hacked 1 | . . . . . . . . . 1 . . . . . . . . . . . . . . Non-combat . | . . . . . . . . . . . . . . . . . . . . . . . . Combat 1 | . . . . . . . . . 1 . . . . . . . . . . . . . . Robot Hacks Applied 1 | . . . . . . . . . 1 . . . . . . . . . . . . . . parse_system 1 | . . . . . . . . . 1 . . . . . . . . . . . . . . Relay Couplers Released 3 | . . . . . . . . . . . . . . . . 2 . . . . 1 . . Machine Destruction 3 | . . . . . . . . . . . . . . . . 2 . . . . 1 . . Fabnet Peak Effective % . | . . . . . . . . . . . . . . . . . . . . . . . . Robots Rewired 4 | . . . . . . . 2 . . . . . . . 2 . . . . . . . . Allies Hacked 2 | . . . . . . . . . . . . . . . 1 1 . . . . . . . Hacks Repelled . | . . . . . . . . . . . . . . . . . . . . . . . . Allies | -11 -10 -10 -9 -9 -8 -7 -7 -7 -7 -6 -6 -6 -6 -6 -5 -5 -5 -5 -5 -4 -4 -4 -4 -------- Run | Scr Mat Min Mat Sto Mat Fac Low Low Dat Pro Fac Low Low Zio Pro Fac Upp Upp War Pro Fac Was Fac Total Allies 43 | . . 3 1 11 . . 2 . . 1 2 . . 13 2 6 . . . . . 1 1 Largest Group 13 | . . 3 3 10 6 . 2 . . 1 1 . . 13 13 5 1 1 1 1 1 1 1 Highest-Rated Group 328 | . . 40 42 88 56 . 36 . . 96 96 . . 328 328 191 26 26 26 26 26 46 26 Highest-Rated Ally 96 | . . 16 16 16 16 . 20 . . 96 96 . . 31 49 49 26 26 26 26 26 46 26 Total Orders 27 | . . . 2 2 4 . . . . . 9 . . . 2 2 1 2 2 1 . . . STAY 10 | . . . 1 1 . . . . . . 2 . . . 1 1 1 1 1 1 . . . FOLLOW 7 | . . . 1 1 . . . . . . 1 . . . 1 1 . 1 1 . . . . EXPLORE 9 | . . . . . 4 . . . . . 5 . . . . . . . . . . . . RETURN 1 | . . . . . . . . . . . 1 . . . . . . . . . . . . Ally Attacks 254 | . . 11 22 39 20 . 3 . . 19 4 . . . 77 51 . . . . . 8 . Total Damage 5835 | . . 80 300 401 203 . 76 . . 459 470 . . . 1467 2159 . . . . . 220 . Kills 46 | . . 2 7 10 3 . 1 . . 3 2 . . . 7 11 . . . . . . . Allies Corrupted 1 | . . . . . . . . . . . . . . . 1 . . . . . . . . Allies Melted . | . . . . . . . . . . . . . . . . . . . . . . . . Intel | -11 -10 -10 -9 -9 -8 -7 -7 -7 -7 -6 -6 -6 -6 -6 -5 -5 -5 -5 -5 -4 -4 -4 -4 ------- Run | Scr Mat Min Mat Sto Mat Fac Low Low Dat Pro Fac Low Low Zio Pro Fac Upp Upp War Pro Fac Was Fac Robot Analysis Total 7 | . 3 . . 1 1 . . . . . . . . . . 2 . . . . . . . Derelict Logs Recovered 20 | . . 1 . . . . 1 3 . 1 . 2 2 1 2 . 3 2 . 2 . . . Drone Launches 46 | . . . . 15 17 . . . . . 14 . . . . . . . . . . . . Drone Recoveries 28 | . . . . 3 17 . . . . . 8 . . . . . . . . . . . . Exploration | -11 -10 -10 -9 -9 -8 -7 -7 -7 -7 -6 -6 -6 -6 -6 -5 -5 -5 -5 -5 -4 -4 -4 -4 ------------- Run | Scr Mat Min Mat Sto Mat Fac Low Low Dat Pro Fac Low Low Zio Pro Fac Upp Upp War Pro Fac Was Fac Turns Passed 22035 | 47 713 625 1608 1055 2747 187 633 511 42 845 1993 810 1122 566 1256 1820 551 769 508 1038 1130 34 1425 Spaces Moved 25339 | 35 526 426 877 613 1491 367 1170 1094 87 1253 2195 1139 1290 909 1307 3428 1070 1008 813 833 1898 64 1446 Core 7 | 2 . . . . . . 2 . . . . . . . . . . 3 . . . . . Treads 1014 | . . . 111 . 903 . . . . . . . . . . . . . . . . . . Legs . | . . . . . . . . . . . . . . . . . . . . . . . . Wheels 2950 | 33 526 426 766 613 586 . . . . . . . . . . . . . . . . . . Hover 13614 | . . . . . . 13 1168 1094 87 1253 2044 1139 1290 909 1307 437 . . 131 833 399 64 1446 Flight 7754 | . . . . . 2 354 . . . . 151 . . . . 2991 1070 1005 682 . 1499 . . Fastest Speed 30 | 50 100 110 105 115 95 30 42 42 42 42 34 53 53 53 53 32 34 39 34 38 30 45 43 Average Speed 60 | 97 113 118 135 121 146 33 42 42 42 45 54 53 53 53 59 38 34 40 42 75 37 45 65 Slowest Speed 550 | 100 115 125 240 130 530 110 250 42 42 46 170 53 53 53 150 150 119 550 110 96 175 45 156 Overloaded Moves 204 | . . . . . . . . . . . . . . . . . . . . 3 201 . . Propulsion Burnouts . | . . . . . . . . . . . . . . . . . . . . . . . . Robots Hopped 29 | . . . . . . 1 . . . . . . . . . 23 . . . . 5 . . Cave-ins Triggered . | . . . . . . . . . . . . . . . . . . . . . . . . Exploration Rate (%) 72 | 3 93 71 61 90 98 7 95 94 74 92 47 95 95 85 85 75 96 82 92 80 43 61 36 Regions Visited 23 Branch Regions 14 Pre-discovered Areas 13 | . 2 1 1 1 . . . 2 1 . . . . 2 1 . . . 1 1 . . . Known Exits Taken 17 | . . . 1 . 1 1 1 1 1 1 1 1 1 1 1 1 1 1 1 1 . . . Unknown Exits Taken 4 | 1 1 1 . 1 . . . . . . . . . . . . . . . . . . . Scrap Searched 31 | . . . . . . . 3 . . 3 . 6 4 2 5 . 5 3 . . . . . Spaces Dug 386 | . 1 . 13 10 24 13 32 7 . 29 49 18 33 . 11 43 9 8 . 16 27 . 43 Terrain Destroyed 665 | . 4 . 13 16 67 13 77 7 . 40 61 18 33 . 11 81 30 8 . 16 127 . 43 Melee 273 | . . . 13 10 24 12 3 6 . 14 35 13 18 . 11 35 7 5 . 10 21 . 36 Projectile 69 | . 1 . . . . 1 3 1 . 1 16 5 15 . . 2 2 3 . 6 6 . 7 AOE 323 | . 3 . . 6 43 . 71 . . 25 10 . . . . 44 21 . . . 100 . . Terrain Rammed . | . . . . . . . . . . . . . . . . . . . . . . . . Walls Destroyed . | . . . . . . . . . . . . . . . . . . . . . . . . Machines Disabled . | . . . . . . . . . . . . . . . . . . . . . . . . Actions | -11 -10 -10 -9 -9 -8 -7 -7 -7 -7 -6 -6 -6 -6 -6 -5 -5 -5 -5 -5 -4 -4 -4 -4 --------- Run | Scr Mat Min Mat Sto Mat Fac Low Low Dat Pro Fac Low Low Zio Pro Fac Upp Upp War Pro Fac Was Fac Total 30138 | 44 590 496 1154 780 1808 404 1273 1119 90 1448 2843 1309 1668 992 1634 3752 1228 1351 976 1214 2176 68 1721 Wait 3097 | . 13 30 129 65 113 . 50 7 . 140 448 147 338 72 207 179 129 298 137 354 148 2 91 Move 25264 | 34 525 425 876 612 1490 364 1169 1093 86 1252 2194 1138 1289 908 1306 3386 1069 1007 812 832 1888 63 1446 Hop 24 | . . . . . . 1 . . . . . . . . . 18 . . . . 5 . . Pick Up 171 | 4 9 4 20 4 20 2 4 1 . 4 23 . 1 3 6 20 1 11 7 1 11 1 14 Fast Attach 106 | 6 6 . 4 3 7 3 2 1 . 1 17 . . 1 1 17 3 2 6 . 9 1 16 Attach 110 | . 2 4 6 1 13 6 5 1 . 3 17 . . 2 3 12 4 2 1 1 11 1 15 Detach 50 | . . . 3 1 2 . 3 . . 1 8 . . 1 . 9 4 2 1 . 6 . 9 Swap 213 | . 10 5 22 7 21 6 9 3 3 6 21 6 3 . 23 21 4 4 2 8 20 . 9 Drop 155 | . 2 1 17 7 17 9 2 1 . 3 24 . 1 4 4 18 1 13 10 . 6 . 15 Fire 289 | . 23 27 52 5 46 1 19 1 . 3 26 5 15 . 11 7 5 3 . 6 21 . 13 Melee 641 | . . . 25 69 79 12 10 11 1 34 62 13 21 1 65 65 8 9 . 12 51 . 93 Ram . | . . . . . . . . . . . . . . . . . . . . . . . . Kick . | . . . . . . . . . . . . . . . . . . . . . . . . Crush . | . . . . . . . . . . . . . . . . . . . . . . . . Escape Stasis . | . . . . . . . . . . . . . . . . . . . . . . . . Rewire 8 | . . . . . . . . . . . . . . . 8 . . . . . . . . Trap 1 | . . . . . . . . . . 1 . . . . . . . . . . . . . Miscellaneous 9 | . . . . 6 . . . . . . 3 . . . . . . . . . . . . Route ------- -11/Scrapyard -10/Materials (discovered 5 exits: *Mat x3 / [*Min x2]) -10/Mines -9/Materials (discovered 3 exits: [*Min x2] / *Sto) -9/Storage -8/Materials (discovered 3 exits: *Fac x3) -7/Factory (discovered 2 exits: *Low x2) -7/Lower Caves -7/Lower Caves (discovered 2 exits: *Fac / *Dat) -7/Data Miner -6/Proximity Caves -6/Factory (discovered 3 exits: Fac / *Low x2) -6/Lower Caves (discovered 2 exits: *Low / *Zio) -6/Lower Caves (discovered 2 exits: *Fac / *Zio) -6/Zion -5/Proximity Caves -5/Factory (discovered 5 exits: *Fac x3 / *Upp x2) -5/Upper Caves -5/Upper Caves (discovered 2 exits: *Fac / *War) -5/Warlord -4/Proximity Caves -4/Factory (discovered 5 exits: *Res / *Upp x2 / Ext x2) -4/Waste -4/Factory (discovered 2 exits: *Res / *Upp) History --------- Turn | Location | Event 28 | -11/Scrapyard | Discovered new exit (range 14) 48 | -11/Scrapyard | Entered Materials 131 | -10/Materials | Discovered new exit (range 17) 303 | -10/Materials | Build established: Mutant 365 | -10/Materials | Discovered new exit (range 13) 411 | -10/Materials | Discovered new exit (range 11) 542 | -10/Materials | Discovered new exit (range 5) 642 | -10/Materials | Discovered new exit (range 17) 761 | -10/Materials | Entered Mines 763 | -10/Mines | Met a Derelict bent on vengeance 809 | -10/Mines | Lost 3 parts (1n2w) 891 | -10/Mines | Discovered new exit (range 9) 1034 | -10/Mines | Assembled infested the area 1039 | -10/Mines | Assisted by a Guerilla fighting off Assembled 1291 | -10/Mines | Learned location of Storage (-9) 1294 | -10/Mines | Assisted by bots powering up and referring to "LRC-V3" 1386 | -10/Mines | Entered Materials 1386 | -9/Materials | Accompanied by 3 allies 1386 | -9/Materials | Evolved 2 slots: Utility x2 1443 | -9/Materials | Build established: Scavenger-Mutant 1540 | -9/Materials | Discovered new exit (range 10) 1568 | -9/Materials | Identified exit to Storage 1805 | -9/Materials | Discovered new exit (range 11) 1820 | -9/Materials | Build established: Mutant 1831 | -9/Materials | Discovered new exit (range 17) 2994 | -9/Materials | Entered Storage 2994 | -9/Storage | Accompanied by 3 allies 3902 | -9/Storage | Assisted by bots powering up and referring to "LRC-V3" 3980 | -9/Storage | Discovered new exit (range 16) 4049 | -9/Storage | Entered Materials 4049 | -8/Materials | Accompanied by 15 allies 4049 | -8/Materials | Evolved 2 slots: Propulsion x1, Utility x1 4240 | -8/Materials | Discovered new exit (range 76) 4263 | -8/Materials | Garrison activated, responded to threat 4316 | -8/Materials | Discovered new exit (range 12) 4329 | -8/Materials | Destroyed 10 combat bots 4468 | -8/Materials | Lost 5 parts (2n2u1w) 4682 | -8/Materials | Core integrity fell below 50% 4874 | -8/Materials | Build established: Hacker-Mutant 5138 | -8/Materials | Repaired Broken Cld. Plasma Cannon? 5164 | -8/Materials | Identified exit to Factory 6796 | -8/Materials | Entered Factory 6796 | -7/Factory | Evolved 2 slots: Utility x2 6856 | -7/Factory | Discovered new exit (range 16) 6857 | -7/Factory | Identified exit to Lower Caves 6983 | -7/Factory | Entered Lower Caves 7109 | -7/Lower Caves | Attacked by a delusional Derelict stockpiling parts 7117 | -7/Lower Caves | Attracted the attention of an 0b10 outpost 7281 | -7/Lower Caves | Spotted B-75 Beast 7383 | -7/Lower Caves | Learned Factory emergency access door positions 7484 | -7/Lower Caves | Build established: Mutant 7530 | -7/Lower Caves | Discovered new exit (range 6) 7532 | -7/Lower Caves | Encountered a Warlord checkpoint 7532 | -7/Lower Caves | Identified exit to Lower Caves 7616 | -7/Lower Caves | Entered another Lower Caves area 7618 | -7/Lower Caves | Attracted the attention of an 0b10 checkpoint 7671 | -7/Lower Caves | Encountered a Warlord checkpoint 7671 | -7/Lower Caves | Discovered new exit (range 9) 7673 | -7/Lower Caves | Identified exit to Factory 7731 | -7/Lower Caves | Identified exit to Data Miner 7854 | -7/Lower Caves | Learned Factory security intel 7855 | -7/Lower Caves | Learned location of Extension (-4) 7855 | -7/Lower Caves | Learned 8 Factory zone layouts 7855 | -7/Lower Caves | Learned 8 Research zone layouts 7855 | -7/Lower Caves | Learned Research stockpile data 7855 | -7/Lower Caves | Learned Extension terminal intel 8055 | -7/Lower Caves | Learned Factory emergency access door positions 8127 | -7/Lower Caves | Entered Data Miner 8127 | -7/Data Miner | Discovered new exit (range 6) 8129 | -7/Data Miner | Identified exit to Proximity Caves 8135 | -7/Data Miner | Met Data Miner 8150 | -7/Data Miner | Learned location of Section 7 (-2) 8150 | -7/Data Miner | Acquired the access code to Warlord's prototype stash 8156 | -7/Data Miner | Received God Mode back door access code from Data Miner 8169 | -7/Data Miner | Entered Proximity Caves 8231 | -6/Proximity Caves | Lost 3 parts (1p1n1u) 8278 | -6/Proximity Caves | Escorted by Enhanced Grunt 8390 | -6/Proximity Caves | Found Imp. Powered Armor 8682 | -6/Proximity Caves | Build established: Hacker-Mutant 8722 | -6/Proximity Caves | Received a Behemoth hack from an annoying Tinkerer 8989 | -6/Proximity Caves | Discovered exit to Factory (range 5) 9014 | -6/Proximity Caves | Entered Factory 9014 | -6/Factory | Accompanied by 1 ally 9014 | -6/Factory | Evolved 2 slots: Propulsion x1, Utility x1 9042 | -6/Factory | Repaired Imp. Sensor Array? 9149 | -6/Factory | Repaired Aerolev Unit? 9216 | -6/Factory | Lost 3 parts (1n2u) 9326 | -6/Factory | Repaired Adv. Weight Redist. System 9525 | -6/Factory | Incoming investigation squad redirected 9609 | -6/Factory | Core integrity fell below 50% 9661 | -6/Factory | Lost 4 parts (1p2n1u) 9678 | -6/Factory | Repaired Adv. Weight Redist. System 9705 | -6/Factory | Repaired Adv. Sensor Array? 9776 | -6/Factory | Repaired Aerolev Unit 9850 | -6/Factory | Central database locked down 9939 | -6/Factory | Incoming investigation squad redirected 9961 | -6/Factory | Fabricated Cld. Aerolev Unit (x1) 10154 | -6/Factory | Repaired System Restoration Module 10239 | -6/Factory | Repaired Cld. Plasma Cannon 10328 | -6/Factory | Repaired System Restoration Module? 10389 | -6/Factory | Repaired Imp. Powered Armor 10578 | -6/Factory | Build established: Hacker-Scout 10614 | -6/Factory | Identified exit to Lower Caves 10658 | -6/Factory | Discovered new exit (range 10) 10755 | -6/Factory | Garrison activated, responded to threat 10858 | -6/Factory | Fabricated Lgt. Regenerative Plating? 10951 | -6/Factory | Fabricated Imp. Hacking Suite (x1) 11007 | -6/Factory | Entered Lower Caves 11008 | -6/Lower Caves | Encountered a Warlord checkpoint 11577 | -6/Lower Caves | Learned 4 Factory zone layouts 11733 | -6/Lower Caves | A Derelict revealed a hidden shortcut to a safe place 11760 | -6/Lower Caves | Discovered new exit (range 8) 11768 | -6/Lower Caves | Identified exit to Lower Caves 11817 | -6/Lower Caves | Entered another Lower Caves area 11886 | -6/Lower Caves | Learned Factory security intel 11941 | -6/Lower Caves | Discovered new exit (range 14) 11946 | -6/Lower Caves | Identified exit to Factory 12024 | -6/Lower Caves | Encountered a Warlord checkpoint 12745 | -6/Lower Caves | Identified exit to Zion 12939 | -6/Lower Caves | Entered Zion 12983 | -6/Zion | Discovered new exit (range 17) 13088 | -6/Zion | Found Prototype Launcher 13088 | -6/Zion | Identified Rocket Array 13111 | -6/Zion | Found CR-A16's Pointy Stick 13182 | -6/Zion | Gained Derelict followers 13211 | -6/Zion | Gained Derelict followers 13229 | -6/Zion | Learned location of Warlord (-5) 13262 | -6/Zion | Gained Derelict followers 13449 | -6/Zion | Identified exit to Proximity Caves 13505 | -6/Zion | Entered Proximity Caves 13505 | -5/Proximity Caves | Accompanied by 13 allies 13839 | -5/Proximity Caves | Spotted B-75 Beast 13846 | -5/Proximity Caves | Allies destroyed B-75 Beast 13908 | -5/Proximity Caves | Learned location of 1 exit from Factory 14237 | -5/Proximity Caves | Lost 4 parts (1p2n1u) 14361 | -5/Proximity Caves | Discovered exit to Factory (range 6) 14466 | -5/Proximity Caves | Build established: Hacker-Mutant 14761 | -5/Proximity Caves | Entered Factory 14761 | -5/Factory | Accompanied by 2 allies 14761 | -5/Factory | Evolved 2 slots: Propulsion x1, Utility x1 14762 | -5/Factory | Identified exit to Factory 14788 | -5/Factory | Identified exit to Upper Caves 14990 | -5/Factory | Garrison activated, responded to threat 15195 | -5/Factory | Lost 4 parts (1p2n1u) 15391 | -5/Factory | Build established: Hacker-Scout 15722 | -5/Factory | Incoming investigation squad redirected 15804 | -5/Factory | Repaired Shock Maul 15824 | -5/Factory | Repaired Imp. System Restoration Module 15879 | -5/Factory | Discovered exit to Factory (range 15) 15903 | -5/Factory | Repaired Broken Cmb. Gravmag System? 15979 | -5/Factory | Fabricated Lgt. Regenerative Plating? 16065 | -5/Factory | Incoming investigation squad redirected 16172 | -5/Factory | Discovered exit to Factory (range 13) 16267 | -5/Factory | Repaired Broken Shock Maul? 16464 | -5/Factory | Repaired Nuclear Pulse Array 16547 | -5/Factory | Fabricated Adv. System Shield (x1) 16581 | -5/Factory | Entered Upper Caves 16581 | -5/Upper Caves | Accompanied by 1 ally 16668 | -5/Upper Caves | Learned 4 Factory zone layouts 16754 | -5/Upper Caves | Learned 4 Factory zone layouts 17016 | -5/Upper Caves | Discovered new exit (range 17) 17055 | -5/Upper Caves | Encountered a Warlord checkpoint 17057 | -5/Upper Caves | Learned Factory stockpile data 17081 | -5/Upper Caves | Found Alien Artifact 17081 | -5/Upper Caves | Identified Core Expander 17081 | -5/Upper Caves | Installed Core Expander, added new Weapon slot 17101 | -5/Upper Caves | Found Alien Artifact 17131 | -5/Upper Caves | Identified exit to Upper Caves 17132 | -5/Upper Caves | Attracted the attention of an 0b10 checkpoint 17132 | -5/Upper Caves | Entered another Upper Caves area 17132 | -5/Upper Caves | Accompanied by 1 ally 17155 | -5/Upper Caves | Learned Factory emergency access door positions 17182 | -5/Upper Caves | Discovered exit to Factory (range 3) 17255 | -5/Upper Caves | Learned Factory stockpile data 17657 | -5/Upper Caves | Discovered new exit (range 13) 17662 | -5/Upper Caves | Identified exit to Warlord 17901 | -5/Upper Caves | Entered Warlord 17901 | -5/Warlord | Accompanied by 1 ally 17974 | -5/Warlord | Learned location of Testing (-2) 17974 | -5/Warlord | Learned Armory emergency access door positions 17975 | -5/Warlord | Learned 4 Research zone layouts 17975 | -5/Warlord | Learned 4 Research zone layouts 17975 | -5/Warlord | Learned 4 Access zone layouts 17975 | -5/Warlord | Learned Testing security intel 17975 | -5/Warlord | Learned Factory recycling unit intel 18121 | -5/Warlord | Warlord's base attacked by MAIN.C 18128 | -5/Warlord | Met Warlord 18132 | -5/Warlord | Opened Warlord's prototype stash 18134 | -5/Warlord | Found Prototype Device 18134 | -5/Warlord | Identified System Purifier 18138 | -5/Warlord | Found Prototype Device 18138 | -5/Warlord | Identified Exp. Cloaking Device 18155 | -5/Warlord | Found Prototype Processor 18161 | -5/Warlord | Found Prototype Reactor 18199 | -5/Warlord | Found Prototype Energy Cannon 18202 | -5/Warlord | Found Prototype Energy Cannon 18393 | -5/Warlord | Opened side exit 18402 | -5/Warlord | Discovered new exit (range 9) 18405 | -5/Warlord | Identified exit to Proximity Caves 18409 | -5/Warlord | Entered Proximity Caves 18409 | -4/Proximity Caves | Accompanied by 1 ally 18720 | -4/Proximity Caves | Build established: Hacker-Assassin 18863 | -4/Proximity Caves | Learned Research security intel 19302 | -4/Proximity Caves | Discovered exit to Factory (range 19) 19447 | -4/Proximity Caves | Entered Factory 19447 | -4/Factory | Accompanied by 1 ally 19447 | -4/Factory | Evolved 2 slots: Power x1, Utility x1 19448 | -4/Factory | Identified exit to Extension 19452 | -4/Factory | Loaded intel: 6 recycling unit locations 19607 | -4/Factory | Repaired Cld. Impulse Thruster 19683 | -4/Factory | Identified Dimensional Node Initializer 19683 | -4/Factory | Identified Exp. Core Analyzer 19683 | -4/Factory | Identified Vortex Chain Reactor 19689 | -4/Factory | Discovered new exit (range 7) 19691 | -4/Factory | Identified exit to Upper Caves 19706 | -4/Factory | Discovered new exit (range 24) 19734 | -4/Factory | Identified exit to Research 19783 | -4/Factory | Repaired Lrn. Terrain Scanner 19823 | -4/Factory | Incoming investigation squad redirected 19948 | -4/Factory | Fabricated Impulse Thruster Array (x1) 19970 | -4/Factory | Identified Vortex Cannon (x2) 20091 | -4/Factory | Discovered exit to Upper Caves (range 10) 20111 | -4/Factory | Fabricated Adv. Hacking Suite? 20126 | -4/Factory | Repaired Broken Cld. Plasma Cannon? 20172 | -4/Factory | Incoming investigation squad redirected 20397 | -4/Factory | Lost 7 parts (1p1n3u2w) 20551 | -4/Factory | Core integrity fell below 50% 20571 | -4/Factory | Incoming assault squad redirected 20577 | -4/Factory | Manually triggered Chute Trap 20577 | -4/Factory | Sucked down chute 20577 | -4/Factory | Entered Waste 20578 | -4/Waste | Met a frightened Derelict 20587 | -4/Waste | Lost 5 parts (1p2n1u1w) 20591 | -4/Waste | Found Prototype Device 20592 | -4/Waste | EMP discharged 20592 | -4/Waste | System corruption reached 10% 20599 | -4/Waste | Discovered new exit (range 16) 20611 | -4/Waste | Identified exit to Factory 20611 | -4/Waste | Entered Factory 20792 | -4/Factory | Fabricated Cmb. Linear Gravjet (x2) 20881 | -4/Factory | Found Enh. Force Lance 20897 | -4/Factory | Identified Exp. Phase Shifter 20919 | -4/Factory | Incoming investigation squad redirected 20980 | -4/Factory | P-70 Sage assimilated allied Administrator 7a 21032 | -4/Factory | Lost 4 parts (1p2n1w) 21273 | -4/Factory | Fabricated Lrn. Sensor Array (x1) 21297 | -4/Factory | Build established: Hacker-Scout 21357 | -4/Factory | Incoming investigation squad redirected 21420 | -4/Factory | Discovered exit to Research (range 16) 21439 | -4/Factory | Fabricated Adv. Hacking Suite? 21652 | -4/Factory | Fabricated Adv. Hacking Suite (x1) 21772 | -4/Factory | Discovered exit to Upper Caves (range 10) 21982 | -4/Factory | Lost 4 parts (1p3u) 22018 | -4/Factory | Initialized slip node 22026 | -4/Factory | Core integrity fell below 20% 22036 | -4/Factory | Core destroyed Last Messages --------------- 22015_ Manufacturing Mainframe disabled. 22018_ Acquired Dimensional Node Initializer. 22018_ Initializer activates and latches into the ground. 22018_ Manufacturing Mainframe disabled. 22026_ Terminal disabled. 22029_ Slug penetrates Terminal. 22029_ Slug penetrates Manufacturing Mainframe. 22032_ Mic. Fission Core destroyed. 22032_ Slug penetrates Manufacturing Mainframe. 22032_ Penetrated by Slug. 22032_ Critical hit (Destroy). 22032_ Cmb. Linear Gravjet destroyed. 22032_ Cmb. Antigrav System destroyed. 22035_ P-70 Sage resets P-70 Sage, system corruption cleaned. 22036_ Adv. Hacking Suite destroyed. 22036_ Dimensional Slip Node implodes. 22036_ S-27 Virus destroyed. 22036_ Y-64 Sentinel destroyed. 22036_ Manufacturing Mainframe disabled. 22036_ S-27 Virus destroyed. Map ----- +----------------------------------------------------+ | ????????????????????????????????????#%#??????????? | | ????????????????????????????????????#%#??????????? | | ????????????????????????????????????# #??????????? | | ????????????????????????????????????# #??????????? | | ????????????????????????????????????# #??????????? | | ????????????????????????????????????# #??????????? | | ????????????????????????????????????# #??????????? | | ????????????????????????????????????#R#??????????? | | ????????????????????????????????????# #??????????? | | ????????????????????????????????????# #??????????? | | ????????????????????????????????????# #??????????? | | ????????????????????????????######??# #??????????? | | ????????????????????????????# !## ##?????????? | | ????????????????????????????# #%% #?????????? | | ????????????????????????????# / ! #?????????? | | ????????????????????????????# # #?????????? | | ????????????????????????????#! ## ##?????????? | | ????????????????????????????# ??# #??????????? | | ?????????????????????##############?#!#??????????? | | ?????????????????????# ] #?#=#??????????? | | ?????????????????????# h o #?#%#?#????????? | | ?????????????????????# """" """" ###*#"#????????? | | ?????????????????????#! """" """" # #????????? | | ?????????????????????# """"!"""" # #????????? | | ?????????????????????# "" ] """ + #????????? | | ?????????????????????# @ ]=gg g# !#????????? | | ?????????????????????# =!"" " #| #????????? | | ?????????????????????# p/ """" ## ##????????? | | ?????????????????????# pp """" ## #?????????? | | ?????????????????????# "" """ ## #?????????? | | ?????????????????????# h p ## ^ #?????????? | | ?????????????????????############### #?????????? | | ???????????????????????????????????# ?????????? | | ??????????????????????????????????? ????????? | | ???????????????????????????????????# ????????? | | ????????????????????????????????????##### ???????? | | ?????????????????????????????????????????# ??????? | | ?????????????????????????????????????????????????? | | ?????????????????????????????????????????????????? | | ?????????????%???????????????????????????????????? | | ?????????????????????????????????????????????????? | | ?????????????????????????????????????????????????? | | ?????????????????????????????????????????????????? | | ?????????????????????????????????????????????????? | | ?????????????????????????????????????????????????? | | ?????????????????????????????????????????????????? | | ?????????????????????????????????????????????????? | | ?????????????????????????????????????????????????? | | ?????????????????????????????????????????????????? | | ?????????????????????????????????????????????????? | +----------------------------------------------------+ Best States ------------- Heat Dissipation 53 Energy Generation 55 Energy Capacity 700 Matter Stores 300 Matter Capacity 300 Sight Range 20 Robot Scan Range 18 Terrain Scan Range 24 Terrain Scan Density 210 Jamming Range 14 Additional Mass Support 12 Armor Coverage 550 Utility Shielding 66 Weapon Shielding 66 Evasion (%) 64 Target Analysis 6 Recoil Reduction 3 Salvage Targeting 1 Offensive Hacking 56 Defensive Hacking 28 Authchip Count 1 Item Schematics ----------------- Hcp. Storage Unit | -10/Materials | Hacked Huge Storage Unit | -10/Materials | Hacked Hacking Suite | -9/Materials | Scanalyzed Datajack | -9/Materials | Scanalyzed Imp. Flight Unit | -9/Materials | Scanalyzed Mni. Grenade Launcher | -9/Storage | Hacked Cld. Plasma Cannon | -8/Materials | Scanalyzed Imp. Sensor Array | -8/Materials | Scanalyzed Machine Analyzer | -8/Materials | Scanalyzed Imp. Signal Interpreter | -8/Materials | Scanalyzed System Shield | -8/Materials | Hacked Combat Drone Bay | -7/Data Miner | Free Lgt. Regenerative Plating | -7/Data Miner | Free Cld. Aerolev Unit | -7/Data Miner | Free Gravity Neutralizer | -7/Data Miner | Free Imp. Lightning Gun | -7/Data Miner | Free Linear Gravjet | -7/Data Miner | Free Mni. Drone Bay | -7/Data Miner | Free Disruptor Cannon | -7/Data Miner | Free Mass Driver | -7/Data Miner | Free Lance | -7/Data Miner | Free Impulse Thruster | -7/Data Miner | Free Imp. Force Booster | -7/Data Miner | Free Imp. Hacking Suite | -6/Factory | Hacked Adv. Sensor Array | -6/Factory | Hacked Prc. Energy Filter | -6/Factory | Scanalyzed Coil Gun | -6/Zion | Archive Imp. Kinecellerator | -6/Zion | Archive Force Field | -6/Zion | Archive Adv. Plasma Cannon | -6/Zion | Archive Flexi-carbon Leg | -6/Zion | Archive Variable Charge Gun | -6/Zion | Archive Myomer Leg | -6/Zion | Archive Imp. Antigrav System | -6/Zion | Archive Adv. Signal Interpreter | -6/Zion | Archive Imp. Coolant Injector | -6/Zion | Archive Thermic Laser | -6/Zion | Archive Phasing Sabre | -6/Zion | Archive Imp. Trap Scanner | -6/Zion | Archive Imp. Dynamic Insulation System | -6/Zion | Archive HERF Cannon | -6/Zion | Archive Prc. Rocket Launcher | -5/Factory | Scanalyzed Hvy. Proton Missile Launcher | -5/Factory | Scanalyzed Imp. System Restoration Module | -5/Factory | Scanalyzed Lrg. Storage Unit | -5/Factory | Scanalyzed Adv. Hacking Suite | -5/Factory | Scanalyzed Enh. Fission Core | -5/Factory | Scanalyzed Cmb. Gravmag System | -5/Factory | Scanalyzed Shock Maul | -5/Factory | Scanalyzed Impulse Thruster Array | -5/Factory | Hacked Adv. System Shield | -5/Factory | Hacked Arm. Heavy Treads | -5/Factory | Hacked Enh. Gauss Cannon | -5/Factory | Hacked Imp. Heavy Siege Treads | -5/Factory | Hacked Exp. Core Analyzer | -4/Factory | Scanalyzed Vortex Chain Reactor | -4/Factory | Scanalyzed System Purifier | -4/Factory | Scanalyzed Lrn. Terrain Scanner | -4/Factory | Scanalyzed Mic. Antimatter Reactor | -4/Factory | Hacked Lrn. Sensor Array | -4/Factory | Hacked Cmb. Linear Gravjet | -4/Factory | Hacked Adv. KE Penetrator | -4/Factory | Scanalyzed Robot Schematics ------------------ S-27 Virus | -7/Data Miner | Free A-15 Conveyor | -7/Data Miner | Free G-47 Trooper | -7/Data Miner | Free X-57 Shotgunner | -7/Data Miner | Free Y-64 Sentinel | -7/Data Miner | Free B-48 Gladiator | -7/Data Miner | Free D-63 Destroyer | -7/Data Miner | Free R-06 Scavenger | -6/Zion | Archive R-10 Processor | -6/Zion | Archive H-66 Slayer | -6/Zion | Archive Fabricated ------------ Cld. Aerolev Unit | x1 | -6/Factory Lgt. Regenerative Plating | x1 | -6/Factory | Authchip Imp. Hacking Suite | x1 | -6/Factory Lgt. Regenerative Plating | x1 | -5/Factory | Authchip Adv. System Shield | x1 | -5/Factory | Authchip Impulse Thruster Array | x1 | -4/Factory Adv. Hacking Suite | x1 | -4/Factory | Authchip Cmb. Linear Gravjet | x2 | -4/Factory | Authchip Lrn. Sensor Array | x1 | -4/Factory | Authchip Adv. Hacking Suite | x1 | -4/Factory | Authchip Adv. Hacking Suite | x1 | -4/Factory | Authchip Alien Tech Used ----------------- Core Expander Dimensional Node Initializer Achievements -------------- None Challenges ------------ None Game ------ Seed XenonMediumBroadsword Manual? 0 Play Time 05:44:54 Cumulative 372.2 hours Start 2022.06.15 @ 02:24:27 End 2022.06.15 @ 20:44:56 Sessions 5 Manual Loads 0 Difficulty Rogue Special Mode None Game No. 98 Rogue 98 Adventurer 0 Explorer 0 Win Type - Total 19 Types 15/1/3/0/0/0/0/0/0 Lore% 90 Gallery% 92 Achievement% 77 Wizard Run 0 Options --------- ASCII 0 Keyboard 0 Movement Numpad Keybinds 0 Fullscreen 1 Font 14/SmallcapsGlow Map View 84x54 Tactical HUD 1 Map Filters NONE Filters NONE Steam 1 RUN: 13bab21e-40a2-48cf-a239-3fb67b8b17a6